Cogmind - Beta 16.1 @@@ ROGUE MODE // 2026.06.19 @ 03:16:48 Player: Godsword Result: Self-destructed Performance ------------- Evolutions (2) 1000 Regions Visited (6) 1200 Robots Destroyed (22) 110 Value Destroyed (282) 282 Prototype IDs (23) 460 Alien Tech Used (0) 0 Bonus (500) 500 TOTAL SCORE: 3552 Bonus ------- Pacifist 200 Aligned with FarCom 300 Cogmind --------- Core Integrity 541/550 Matter 268/300 Energy 375/375 System Corruption 0% Temperature Cool (0) Movement Flying (117) Ox1 Location -8/Materials Parts ------- > --- POWER (1) -------- Light Ion Engine > --- PROPULSION (4) --- Flight Unit Flight Unit > --- UTILITY (4) ------ High-capacity Battery Visual Processing Unit 0b10 Alert Chip Improved Power Shielding > --- WEAPON (2) ------- Mini Grenade Launcher Katana > --- INVENTORY (5) ---- Light Deuterium Engine Flight Unit Flight Unit Improved Grenade Launcher Axe Peak State ------------ > --- POWER ------------ Light Ion Engine > --- PROPULSION ------- Airjet Flight Unit Flight Unit Flight Unit > --- UTILITY ---------- High-capacity Matter Pod Visual Processing Unit 0b10 Alert Chip High-powered Tractor Beam > --- WEAPON ----------- Mini Grenade Launcher Katana > --- INVENTORY -------- Improved Hover Unit High-capacity Battery Mini Grenade Launcher Improved Grenade Launcher Maul [Rating: 25] Favorites ----------- Power Light Ion Engine Engine Light Ion Engine Propulsion Flight Unit Hover Unit Airjet Flight Unit Flight Unit Utility Visual Processing Unit Device High-powered Tractor Beam Storage Compact Matter Pod Processor Visual Processing Unit Protection Improved Power Shielding Weapon Mini Grenade Launcher Launcher Mini Grenade Launcher Impact Weapon Maul Slashing Weapon Katana Build | -11 -10 -9 -9 -9 -8 -8 ------- Run | Yrd Mat Mat Min Exi Min Mat Slots Evolved 4 | . . 2 . . . 2 Power . | . . . . . . . Propulsion 2 | . . 2 . . . . Utility 2 | . . . . . . 2 Weapon . | . . . . . . . Parts Attached 22 | . 2 2 4 1 4 9 Power 2 | . . . 1 . 1 . Engine 2 | . . . 1 . 1 . Core . | . . . . . . . Reactor . | . . . . . . . Propulsion 7 | . . . 2 . 3 2 Treads . | . . . . . . . Leg . | . . . . . . . Wheel . | . . . . . . . Hover 1 | . . . . . . 1 Flight 6 | . . . 2 . 3 1 Utility 8 | . 1 . 1 1 . 5 Device 2 | . . . . . . 2 Storage 3 | . . . 1 . . 2 Processor 2 | . 1 . . 1 . . Hackware . | . . . . . . . Protection 1 | . . . . . . 1 Artifact . | . . . . . . . Weapon 5 | . 1 2 . . . 2 Energy Gun . | . . . . . . . Energy Cannon . | . . . . . . . Ballistic Gun . | . . . . . . . Ballistic Cannon . | . . . . . . . Launcher 2 | . . 2 . . . . Special Weapon . | . . . . . . . Impact Weapon 2 | . 1 . . . . 1 Slashing Weapon 1 | . . . . . . 1 Piercing Weapon . | . . . . . . . Special Melee Weapon . | . . . . . . . Unidentified Prototypes 1 | . . . . 1 . . Parts Lost 6 | . . . 4 . . 2 Power 1 | . . . 1 . . . Propulsion 4 | . . . 2 . . 2 Utility 1 | . . . 1 . . . Weapon . | . . . . . . . Highest Loss Streak 4 | . . . 4 . . 2 To Critical Strikes . | . . . . . . . Average Backups 4 | . 2 5 4 5 5 4 Power . | . 1 1 . 1 1 . Propulsion . | . . . . . . 1 Utility 1 | . . 1 1 2 2 . Weapon 1 | . 1 3 2 2 2 2 Tool/Special . | . . . . . . . Unused Backups 13 | . . 2 . 2 1 8 Power 3 | . . . . . 1 2 Propulsion 3 | . . . . . . 3 Utility 2 | . . . . 2 . . Weapon 5 | . . 2 . . . 3 Tool/Special . | . . . . . . . Average Slot Usage (%) 51 | . 11 25 51 39 66 96 Engine 2 | . . . 2 . 4 9 Hover 1 | . . . . . . 4 Flight 8 | . . . 7 . 17 28 Device 1 | . . . . . . 7 Storage 3 | . . . 8 . . 9 Processor 14 | . 5 11 11 17 22 18 Launcher 15 | . . 5 22 22 22 11 Impact Weapon 1 | . 5 9 . . . . Slashing Weapon 1 | . . . . . . 6 Peak Build Rating 25 | . 4 6 12 12 16 25 Average Rating 11 | . 1 4 9 9 14 22 On Entrance 6 | . . 4 6 6 12 16 Avg Prop Armor Cover (%) 7 | . . . . . . 7 Naked Turns 46 | . 46 . . . . . Heaviest Build 12 | . 3 4 6 2 5 12 Greatest Support 16 | 3 3 3 8 3 12 16 Greatest Overweight (x) 1 | . . 1 . . . . Average Overweight (x) . | . . . . . . . Largest Inventory Capacity 5 | 5 5 5 5 5 5 5 Average Capacity 5 | 5 5 5 5 5 5 5 Most Carried 5 | 1 5 5 5 5 5 5 Average Carried 4 | . 2 4 4 4 4 4 Final Capacity 5 | 5 5 5 5 5 5 5 Final Carried 5 | 1 5 4 5 5 5 5 Class Distribution -------------------- 73% | Mutant 26% | Scavenger-Scout Dominant Class ---------------- Mutant | -10/Materials Mutant | -9/Materials Mutant | -9/Mines Mutant | -9/Exiles Mutant | -8/Mines Scavenger-Scout | -8/Materials Resources | -11 -10 -9 -9 -9 -8 -8 ----------- Run | Yrd Mat Mat Min Exi Min Mat Matter Collected 547 | 200 . . 150 45 10 142 Remotely 132 | . . . . . . 132 Salvage Created 344 | . . . 205 . 14 125 Parts 31 | . . . 13 . 7 11 Haulers Intercepted . | . . . . . . . Recyclers Shooed . | . . . . . . . Parts Field Recycled . | . . . . . . . Retrieved Matter . | . . . . . . . Parts Self-Destructed . | . . . . . . . Prevented . | . . . . . . . Parts Restored . | . . . . . . . Kills | -11 -10 -9 -9 -9 -8 -8 ------- Run | Yrd Mat Mat Min Exi Min Mat Combat Hostiles Destroyed 17 | . . . 6 . 4 7 AOE 17 | . . . 6 . 4 7 Classes Destroyed 5 | . . . 5 . . . Worker 1 | . . . 1 . . . Tunneler 2 | . . . 1 . 1 . Recycler 2 | . . . 1 . . 1 Swarmer 14 | . . . 3 . 4 7 Grunt 3 | . . . 3 . . . Best Kill Streak 7 | . . . 6 . 5 7 Combat Bots Only 7 | . . . 6 . 4 7 Max Kills in Single Turn 4 | . . . 2 . 3 4 Gunslinging . | . . . . . . . Exploded 4 | . . . 2 . 3 4 Melee . | . . . . . . . Uniques/NPCs Destroyed . | . . . . . . . Combat | -11 -10 -9 -9 -9 -8 -8 -------- Run | Yrd Mat Mat Min Exi Min Mat Hostile Shots Fired 55 | . 15 . 16 . 6 18 Missed 22 | . 5 . 4 . 3 10 Hits 33 | . 10 . 12 . 3 8 Projectile 33 | . 10 . 12 . 3 8 AOE 7 | . . . 7 . . . Damage Taken 664 | . 111 . 364 . 72 117 Core 378 | . 65 . 272 . 32 9 Absorbed by Shields . | . . . . . . . Redirected to Shielding 9 | . . . . . . 9 Core Remaining (%) 66 | 100 74 . . . 24 . Volleys Fired 14 | . . . 8 . 3 3 Largest 2 | . . . 2 . 1 1 Hottest 60 | . . . 60 . 30 30 Shots Fired 19 | . . . 13 . 3 3 Gun . | . . . . . . . Cannon . | . . . . . . . Launcher 19 | . . . 13 . 3 3 Special . | . . . . . . . Kinetic . | . . . . . . . Thermal . | . . . . . . . Explosive 19 | . . . 13 . 3 3 Electromagnetic . | . . . . . . . Robot Hit Streak 1 | . . . 1 . 1 . Robot Miss Streak 2 | . . . 2 . 2 2 Penetration Max . | . . . . . . . Secondary Targets . | . . . . . . . Shots Hit Robots 4 | . 1 . 1 . 1 1 Core Hits 31 | . . . 18 . 4 9 Critical Kills . | . . . . . . . Critical Parts Destroyed . | . . . . . . . Critical Strikes . | . . . . . . . Melee Attacks 13 | . 2 1 . . . 10 Impact 4 | . 2 1 . . . 1 Slashing 9 | . . . . . . 9 Piercing . | . . . . . . . Sneak Attacks 1 | . . . . . . 1 Combat Hostiles . | . . . . . . . Follow-up Attacks . | . . . . . . . Damage Inflicted 1405 | . 56 . 681 . 270 398 Guns . | . . . . . . . Cannons . | . . . . . . . Explosions 1251 | . . . 660 . 270 321 Melee 133 | . 56 . . . . 77 Ramming 21 | . . . 21 . . . Kinetic . | . . . . . . . Thermal . | . . . . . . . Explosive 1251 | . . . 660 . 270 321 Electromagnetic . | . . . . . . . Impact 56 | . 56 . . . . . Slashing 77 | . . . . . . 77 Piercing . | . . . . . . . Highest Corruption . | . . . . . . . Average Corruption . | . . . . . . . Corruption Purged . | . . . . . . . Corruption Blocked . | . . . . . . . Overload Shots . | . . . . . . . Overflow Damage 56 | . . . 15 . 41 . Projectiles . | . . . . . . . Explosions 56 | . . . 15 . 41 . Melee . | . . . . . . . Knockbacks . | . . . . . . . Impact . | . . . . . . . Kinetic . | . . . . . . . Secondary . | . . . . . . . Self-Inflicted Damage 72 | . . . 24 . 48 . Shots 2 | . . . 1 . 1 . Rammed 6 | . . . 6 . . . Targets Rammed 6 | . . . 6 . . . Kicked . | . . . . . . . Crushed . | . . . . . . . Highest Temperature 7 | . . . 7 . . . Average Temperature 7 | . . . 7 . . . Received Heat Transfer 87 | . 54 . 6 . . 27 Siege Activations . | . . . . . . . Martial Activations . | . . . . . . . Shielding Activations . | . . . . . . . Robots Disrupted . | . . . . . . . Combat Hostiles . | . . . . . . . Robots Corrupted . | . . . . . . . Combat Hostiles . | . . . . . . . Parts Fried . | . . . . . . . Impact Corruptions . | . . . . . . . Robots Melted . | . . . . . . . Combat Hostiles . | . . . . . . . Parts Melted . | . . . . . . . Heat Transferred . | . . . . . . . Parts Sabotaged . | . . . . . . . Parts Stolen . | . . . . . . . Parts Stripped . | . . . . . . . Power Chain Reactions . | . . . . . . . Alert | -11 -10 -9 -9 -9 -8 -8 ------- Run | Yrd Mat Mat Min Exi Min Mat Maximum Alert Level . | . . . . . . . Low Security (%) 100 | 100 100 100 100 . 100 100 Level 1 . | . . . . . . . Level 2 . | . . . . . . . Level 3 . | . . . . . . . Level 4 . | . . . . . . . Level 5 . | . . . . . . . High Security . | . . . . . . . Max Security . | . . . . . . . Peak Influence 191 | . . . 191 . 103 150 Initial 35 | . . . . . . 35 Average 57 | . . . 101 . 86 54 Influence Increases 535 | . . . 252 . 103 180 Destroy 0b10 Robot/C 296 | . . . 120 . 64 112 Destroy 0b10 Robot/NC 23 | . . . 15 . 4 4 Destroy Leader 44 | . . . 20 . 8 16 Destroy Structure 118 | . . . 67 . 27 24 Partial Spotted 12 | . . . . . . 12 Lose Combat Pursuer 42 | . . . 30 . . 12 Influence Decreases 413 | . . . 100 152 10 151 Entered New Map 210 | . . . . 152 . 58 Time Decay 118 | . . . 60 . 10 48 Lost Part 60 | . . . 40 . . 20 Purge Threat 25 | . . . . . . 25 Squads Dispatched 3 | . . 1 . . . 2 Investigation . | . . . . . . . Extermination . | . . . . . . . Reinforcement 3 | . . 1 . . . 2 Assault . | . . . . . . . Garrison . | . . . . . . . Intercept . | . . . . . . . Searches Triggered . | . . . . . . . Construction Impeded . | . . . . . . . Haulers Reinforced . | . . . . . . . Active Scanning Responses . | . . . . . . . Cargo Convoy Interrupts . | . . . . . . . Stealth | -11 -10 -9 -9 -9 -8 -8 --------- Run | Yrd Mat Mat Min Exi Min Mat Distress Signals 1 | . 1 . . . . . Communications Jammed . | . . . . . . . Distress Signals . | . . . . . . . Times Spotted 34 | . 6 1 12 . 1 14 Peak Tracking Total 20 | . 6 1 20 . 1 10 Tactical Retreats 3 | . . . 2 . . 1 Traps | -11 -10 -9 -9 -9 -8 -8 ------- Run | Yrd Mat Mat Min Exi Min Mat Traps Triggered . | . . . . . . . Indirectly . | . . . . . . . Trap Hack Attempts . | . . . . . . . Triggered . | . . . . . . . Disarmed . | . . . . . . . Reprogrammed . | . . . . . . . Reused . | . . . . . . . Traps Extracted . | . . . . . . . Installed . | . . . . . . . Triggered . | . . . . . . . Machines | -11 -10 -9 -9 -9 -8 -8 ---------- Run | Yrd Mat Mat Min Exi Min Mat Machines Disabled . | . . . . . . . Max in Single Turn . | . . . . . . . Machines Repaired . | . . . . . . . Machines Dismantled . | . . . . . . . Machines Sabotaged . | . . . . . . . Overloaded Fab Kills . | . . . . . . . Hacking | -11 -10 -9 -9 -9 -8 -8 --------- Run | Yrd Mat Mat Min Exi Min Mat Machines Accessed 9 | . 2 1 . 4 . 2 Terminals 4 | . 1 1 . . . 2 Fabricators . | . . . . . . . Repair Stations . | . . . . . . . Recycling Units 1 | . 1 . . . . . Scanalyzers . | . . . . . . . Garrison Access . | . . . . . . . Total Hacks 39 | . 7 2 . 27 . 3 Successful 29 | . 1 . . 27 . 1 Failed 10 | . 6 2 . . . 2 Catastrophic 4 | . 2 . . . . 2 Database Lockouts . | . . . . . . . Manual 11 | . 5 2 . 1 . 3 Terminals 10 | . 5 2 . . . 3 Fabricators . | . . . . . . . Repair Stations . | . . . . . . . Recycling Units 2 | . 2 . . . . . Scanalyzers . | . . . . . . . Garrison Access . | . . . . . . . Terminal Hacks 28 | . . . . 27 . 1 Record 26 | . . . . 26 . . Unreport Threat 1 | . . . . . . 1 Proto ID Catalog 1 | . . . . 1 . . Fabricator Hacks . | . . . . . . . Repair Station Hacks . | . . . . . . . Recycling Unit Hacks 1 | . 1 . . . . . Retrieve Components 1 | . 1 . . . . . Scanalyzer . | . . . . . . . Garrison Access Hacks . | . . . . . . . Unauthorized Hacks . | . . . . . . . Terminals . | . . . . . . . Fabricators . | . . . . . . . Repair Stations . | . . . . . . . Recycling Units . | . . . . . . . Scanalyzers . | . . . . . . . Garrison Access . | . . . . . . . Data Cores Recovered . | . . . . . . . Used . | . . . . . . . Hacking Detections 5 | . 2 1 . . . 2 Full Trace Events 1 | . 1 . . . . . Feedback Events . | . . . . . . . Feedback Blocked . | . . . . . . . Robot Schematics Acquired . | . . . . . . . Robots Built . | . . . . . . . Authchips . | . . . . . . . Time . | . . . . . . . Total Robot Build Rating . | . . . . . . . Part Schematics Acquired . | . . . . . . . Parts Built . | . . . . . . . Authchips . | . . . . . . . Time . | . . . . . . . Total Part Build Rating . | . . . . . . . Part Studies Acquired . | . . . . . . . Parts Repaired . | . . . . . . . Time . | . . . . . . . Parts Recycled . | . . . . . . . Recycled Matter . | . . . . . . . Retrieved Matter . | . . . . . . . Retrieved Components 1 | . 1 . . . . . Parts Scanalyzed . | . . . . . . . Part Schematics Acquired . | . . . . . . . Parts Damaged . | . . . . . . . Bothacking | -11 -10 -9 -9 -9 -8 -8 ------------ Run | Yrd Mat Mat Min Exi Min Mat Used RIF Installer . | . . . . . . . Robots Hacked . | . . . . . . . Non-combat . | . . . . . . . Combat . | . . . . . . . Robot Hacks Applied . | . . . . . . . Relay Couplers Released . | . . . . . . . Fabnet Peak Effective % . | . . . . . . . Robots Rewired . | . . . . . . . Allies Hacked . | . . . . . . . Hacks Repelled . | . . . . . . . Allies | -11 -10 -9 -9 -9 -8 -8 -------- Run | Yrd Mat Mat Min Exi Min Mat Total Allies . | . . . . . . . Largest Group . | . . . . . . . Highest-Rated Group . | . . . . . . . Highest-Rated Ally . | . . . . . . . Total Orders . | . . . . . . . Ally Attacks . | . . . . . . . Total Damage . | . . . . . . . Kills . | . . . . . . . Allies Corrupted . | . . . . . . . Allies Melted . | . . . . . . . Intel | -11 -10 -9 -9 -9 -8 -8 ------- Run | Yrd Mat Mat Min Exi Min Mat Active Infowar (turns) 665 | . 42 46 151 230 39 157 Optics 665 | . 42 46 151 230 39 157 Sensors 1 | . . . . . . 1 Robot Analysis Total . | . . . . . . . Derelict Logs Recovered 1 | . . . 1 . . . Drone Launches . | . . . . . . . Drone Recoveries . | . . . . . . . Exploration | -11 -10 -9 -9 -9 -8 -8 ------------- Run | Yrd Mat Mat Min Exi Min Mat Turns Passed 762 | 13 92 46 185 230 39 157 Spaces Moved 1276 | 24 128 65 299 451 71 238 Core 843 | 24 128 65 172 451 3 . Treads . | . . . . . . . Legs . | . . . . . . . Wheels . | . . . . . . . Hover . | . . . . . . . Flight 433 | . . . 127 . 68 238 Fastest Speed 31 | 50 50 50 37 50 34 31 Average Speed 44 | 50 50 51 44 50 35 33 Slowest Speed 100 | 50 50 100 50 50 50 34 Overloaded Moves . | . . . . . . . Propulsion Burnouts . | . . . . . . . Robots Hopped . | . . . . . . . Potential Cave-ins . | . . . . . . . Cave-ins Triggered . | . . . . . . . Exploration Rate (%) 33 | 4 36 9 45 78 24 36 Regions Visited 6 Branch Regions 3 Pre-discovered Areas . | . . . . . . . Known Exits Taken . | . . . . . . . Unknown Exits Taken 6 | 1 1 1 1 1 1 . Scrap Searched 1 | . . . 1 . . . Spaces Dug 9 | . . . . . . 9 Terrain Destroyed 174 | . . . 122 . 28 24 Melee 9 | . . . . . . 9 Projectile . | . . . . . . . AOE 165 | . . . 122 . 28 15 Terrain Rammed . | . . . . . . . Walls Destroyed . | . . . . . . . Machines Disabled . | . . . . . . . Actions | -11 -10 -9 -9 -9 -8 -8 --------- Run | Yrd Mat Mat Min Exi Min Mat Total 1414 | 24 150 75 335 455 79 296 Wait 46 | . 15 3 16 . . 12 Move 1270 | 23 127 64 298 450 70 238 Hop . | . . . . . . . Pick Up 20 | 1 4 2 3 2 1 7 Fast Attach 17 | . 2 1 2 1 4 7 Attach 5 | . . 1 2 . . 2 Detach 1 | . . . . . . 1 Swap 5 | . . . . . . 5 Drop 17 | . . 3 . 2 1 11 Fire 14 | . . . 8 . 3 3 Melee 13 | . 2 1 . . . 10 Ram 6 | . . . 6 . . . Kick . | . . . . . . . Crush . | . . . . . . . Escape Stasis . | . . . . . . . Rewire . | . . . . . . . Trap . | . . . . . . . Miscellaneous . | . . . . . . . Route ------- -11/Scrapyard -10/Materials -9/Materials -9/Mines -9/Exiles (discovered 2 exits: [*Min x2]) -8/Mines -8/Materials (discovered 1 exit: Fac) History --------- Turn | Location | Event 2 | -11/Scrapyard | Met Revision 17 8 | -11/Scrapyard | Discovered new exit (range 12) 14 | -11/Scrapyard | Entered Materials 99 | -10/Materials | Discovered new exit (range 16) 106 | -10/Materials | Entered another Materials area 106 | -9/Materials | Evolved 2 slots: Propulsion x2 125 | -9/Materials | Discovered new exit (range 18) 152 | -9/Materials | Entered Mines 176 | -9/Mines | Learned location of 1 exit from Materials 286 | -9/Mines | Assembled infested the area 310 | -9/Mines | Build established: Mutant 319 | -9/Mines | Core integrity fell below 50% 334 | -9/Mines | Discovered new exit (range 5) 337 | -9/Mines | Entered Exiles 345 | -9/Exiles | Discovered new exit (range 16) 348 | -9/Exiles | Lost 4 parts (1p2n1u) 361 | -9/Exiles | Met 8R-AWN 374 | -9/Exiles | Met EX-HEX 389 | -9/Exiles | Met EX-BIN 400 | -9/Exiles | Aligned with FarCom system 400 | -9/Exiles | Given EX-Vault access code 426 | -9/Exiles | Opened EX-Vault 429 | -9/Exiles | Found Prototype Processor 429 | -9/Exiles | Identified 0b10 Alert Chip 442 | -9/Exiles | Warned to stay clear of 0b10 Research branches 461 | -9/Exiles | Met EX-DEC 521 | -9/Exiles | Visited The Gauntlet 561 | -9/Exiles | Discovered new exit (range 15) 567 | -9/Exiles | Left Exiles lab with 0b10 Alert Chip 567 | -9/Exiles | Entered Mines 604 | -8/Mines | Discovered new exit (range 3) 606 | -8/Mines | Entered Materials 606 | -8/Materials | Evolved 2 slots: Utility x2 607 | -8/Materials | Identified exit to Factory 735 | -8/Materials | Destroyed 7 combat bots 763 | -8/Materials | Self-destructed Last Messages --------------- 00723_ U-05 Engineer lays Concrete. 00724_ K-01 Serf collects debris. 00726_ Connecting with Terminal... 00731_ R-06 Scavenger collects Mni. Grenade Launcher. 00732_ K-01 Serf collects debris. 00733_ Dropped Hpw. Tractor Beam. 00734_ Acquired Imp. Sensor Array. 00735_ K-01 Serf cleans the Fusion Modulator. 00735_ Dropped Imp. Sensor Array. 00736_ Acquired Hpw. Tractor Beam. 00739_ U-05 Engineer destroyed. 00739_ K-01 Serf collects debris. 00740_ Acquired 11 matter. 00742_ K-01 Serf collects debris. 00742_ Flight Unit destroyed. 00744_ K-01 Serf collects debris. 00757_ Acquired Imp. Power Shielding. 00760_ Scanalyzer disabled. 00763_ Flight Unit destroyed. Map ----- +----------------------------------------------------+ | ####### #???????????? | | #???????????? | | T !#???????????? | | #???????????? | | ####### #???????????? | | #?????# ####+###+#???????????? | | ##+####????#####+####??? ?? ???????????? | | ???????????# #??? ???*#??????????? | | ???????????# """ #???""??? #??????????? | | ???????????# """"" #???""????#??????????? | | ???????????# """""g #????????????????????? | | ???????????# """"" #????????????????????? | | ???????????# """ #????????????????????? | | ???????????# #????????????????????? | | ???????????# #?###????????????????? | | ???????????# ###Y######???????????? | | ??????????#"########; #???????????? | | ??????????##???????##!!! #???????????? | | ????????????????????#!! #???????????? | | ????????????????????#!! #???????????? | | ????????????????????# #???????????? | | ????????????????????# #???????????? | | ????????????????????# " #???????????? | | ????????????????????# S"" #???????????? | | ????????????????????# "" #???????????? | | ????????????????????#####@####???????????? | | ??????????????????????? ?????????????? | | ??????????????????????# ???????????? | | ??????????????????????# Y ?????????? | | ??????????????????????# #???????? | | ??????????????????????# #T## #???????? | | ??????????????????????## ####??#???????? | | ???????????????????????# #?????????????? | | ???????????????????????# +?????????????? | | ???????????????????????# #?????????????? | | ???????????????????????# #?????????????? | | ???????????????????????# #?????????????? | | ???????????????????????# #?????????????? | | ???????????????????????# #?????????????? | | ???????????????????????# #?????????????? | | ???????????????????????? ??????????????? | | ???????????????????????? o??????????????? | | ???????????????????????? ??????????????? | | ?????????????????????????????????????????? | | ?????????????????????????????????????????? | | ?????????????????????????????????????????? | | ?????????????????????????????????????????? | | ?????????????????????????????????????????? | | ?????????????????????????????????????????? | | ?????????????????????????